bitfinex/quotes_SOLUSD_20251124
["timestamp","ask_amount","ask_price","bid_price","bid_amount"]
[1763968651014,0.16474143,130.58,130.57,18.46176455]
[1763968651201,0.16474143,130.58,130.57,36.58272455]
[1763968651402,0.16474143,130.58,130.57,98.68272455]
[1763968651815,0.16474143,130.58,130.55,0.67]
[1763968652122,0.16474143,130.58,130.57,7.06308081]
[1763968652819,0.16474143,130.58,130.55,3.74066364]
[1763968653004,0.16474143,130.58,130.56,7.06308081]
[1763968653491,0.16474143,130.58,130.57,7.73308081]
[1763968653907,0.16474143,130.58,130.55,3.07066364]
[1763968654112,0.84474143,130.58,130.55,7.06308081]
[1763968654490,0.84474143,130.58,130.55,12.00943041]
[1763968655018,0.16474143,130.58,130.57,12.00943041]
[1763968657418,0.16474143,130.58,130.57,12.67943041]
[1763968660026,0.16474143,130.58,130.57,15.74962268]
[1763968660327,0.16474143,130.58,130.57,15.78791568]
[1763968661521,0.33255035,130.58,130.57,12.71772341]
[1763968661704,0.33255035,130.58,130.57,15.78815135]
[1763968662104,0.16780892,130.58,130.57,15.78815135]
[1763968664309,0.16780892,130.58,130.57,56.97726887]
[1763968664718,0.16780892,130.58,130.57,44.96783846]
[1763968666037,0.16780892,130.58,130.57,56.97726887]
[1763968666926,0.16780892,130.58,130.57,66.76609656]
[1763968669228,0.16780892,130.58,130.57,128.86609656]
[1763968671257,0.16780892,130.58,130.57,107.06783846]
[1763968671413,0.16780892,130.58,130.57,77.88815135]
[1763968672144,0.16780892,130.58,130.57,74.81772341]
[1763968672557,0.16780892,130.58,130.57,12.04772341]
[1763968672855,0.16780892,130.58,130.57,12.71772341]
[1763968673150,0.16780892,130.58,130.57,12.04772341]
[1763968673720,0.16780892,130.58,130.57,12.71772341]
[1763968676822,0.16780892,130.58,130.57,20.37645052]
[1763968678769,0.16780892,130.58,130.57,13.06551234]
[1763968678938,0.16780892,130.58,130.57,23.52774523]
[1763968679649,0.16780892,130.58,130.57,31.18647234]
[1763968680839,0.15768252,130.6,130.57,102.40530003]
[1763968681054,0.15768252,130.6,130.59,4.69849223]
[1763968681367,0.15768252,130.6,130.59,5.36849223]
[1763968681550,0.29569782,130.6,130.59,5.36849223]
[1763968682257,0.1380153,130.6,130.59,5.36849223]
[1763968684169,0.1380153,130.6,130.59,67.46849223]
[1763968684548,0.1380153,130.6,130.59,75.1260464]
[1763968686269,0.1380153,130.6,130.59,103.8015895]
[1763968686448,0.16307969,130.62,130.61,22.81945223]
[1763968686654,0.16307969,130.62,130.61,88.98945223]
[1763968687746,0.14035874,130.63,130.61,27.65509038]
[1763968687971,0.14035874,130.63,130.62,5.36849223]
[1763968688145,0.14035874,130.63,130.62,13.02428766]
[1763968688646,0.1658344,130.64,130.62,13.02428766]
[1763968688647,0.1658344,130.64,130.63,27.90978769]
[1763968688851,0.16089202,130.65,130.63,47.04133308]
[1763968689072,0.16273789,130.66,130.64,4.69849223]
[1763968689244,0.16273789,130.66,130.65,4.69849223]
[1763968689670,0.81273789,130.66,130.65,4.69849223]
[1763968690651,0.81273789,130.66,130.65,11.99165337]
[1763968692777,0.16273789,130.66,130.65,11.99165337]
[1763968694169,0.16273789,130.66,130.65,82.41569087]
[1763968694482,0.16273789,130.66,130.65,48.99088231]
[1763968694689,0.2,130.7,130.68,27.90978769]
[1763968694982,0.2,130.72,130.68,78.31309443]
[1763968695198,0.65,130.78,130.72,9.78882769]
[1763968695360,0.65,130.78,130.77,11.99165337]
[1763968695562,0.65,130.81,130.77,11.99165337]
[1763968695751,0.65,130.81,130.8,11.99165337]
[1763968695960,0.65,130.83,130.8,11.99165337]
[1763968696252,0.2,130.85,130.82,11.99165337]
[1763968696464,0.2,130.85,130.84,39.90144106]
[1763968696678,0.2,130.85,130.84,33.51261337]
[1763968696880,0.85,130.85,130.84,11.99165337]
[1763968697083,0.2,130.85,130.84,11.99165337]
[1763968697453,0.2,130.85,130.82,21.52096]
[1763968697689,0.2,130.85,130.84,11.99165337]
[1763968698405,0.85,130.85,130.84,11.99165337]
[1763968699491,0.2,130.85,130.84,11.99165337]
[1763968701257,0.2,130.85,130.84,23.71457602]
[1763968701475,0.2,130.85,130.84,33.50340371]
[1763968701687,0.15071408,130.88,130.85,22.46048106]
[1763968701989,0.15071408,130.88,130.87,11.99165337]
[1763968702189,0.80071408,130.88,130.87,11.99165337]
[1763968702907,0.15071408,130.88,130.87,11.99165337]
[1763968705380,0.15071408,130.88,130.87,15.39165337]
[1763968706788,0.15071408,130.88,130.87,16.07165337]
[1763968707175,0.15071408,130.88,130.87,15.39165337]
[1763968707373,0.15071408,130.88,130.87,20.31282399]
[1763968707576,0.34327425,130.89,130.87,23.71282399]
[1763968707881,0.34533763,130.9,130.88,22.46048106]
[1763968708191,0.34533763,130.9,130.89,37.85213443]
[1763968708566,0.34533763,130.9,130.89,15.39165337]
[1763968708968,0.34533763,130.9,130.89,16.07165337]
[1763968709290,0.34533763,130.9,130.89,23.71165642]
[1763968709991,0.34533763,130.9,130.89,41.83261642]
[1763968711268,0.34533763,130.9,130.89,63.61309748]
[1763968711479,0.1439228,130.91,130.89,63.61309748]
[1763968711681,0.1439228,130.91,130.9,24.66330674]
[1763968712087,0.1439228,130.91,130.9,11.99165337]
[1763968712497,0.1439228,130.91,130.9,23.98330674]
[1763968713001,0.1439228,130.91,130.9,24.66330674]
[1763968713673,0.1439228,130.91,130.9,32.30272614]
[1763968714018,0.1439228,130.91,130.9,11.99165337]
[1763968714310,0.1439228,130.91,130.9,15.39165337]
[1763968714675,0.1439228,130.91,130.9,10.41236364]
[1763968715020,0.1439228,130.91,130.9,7.01236364]
[1763968715177,0.1439228,130.91,130.9,10.41236364]
[1763968715981,0.7939228,130.91,130.9,7.01236364]
[1763968716897,0.1439228,130.91,130.88,3.4]
[1763968717176,0.1439228,130.91,130.9,7.01236364]
[1763968718011,0.7939228,130.91,130.9,7.01236364]
[1763968721012,0.7939228,130.91,130.88,7.01236364]
[1763968721510,0.14310617,130.89,130.88,7.01236364]
[1763968721712,0.14310617,130.89,130.87,7.01236364]
[1763968721916,0.65,130.88,130.87,7.01236364]
[1763968722321,0.14310617,130.89,130.87,7.01236364]
[1763968722618,0.65,130.88,130.83,0.68]
[1763968722799,0.14310617,130.89,130.86,18.12096]
[1763968723003,0.14310617,130.89,130.86,21.52096]
[1763968723186,0.14310617,130.89,130.87,1.44411706]
[1763968723387,0.14798798,130.9,130.89,27.90978769]
[1763968723589,0.14489821,130.92,130.9,9.78882769]
[1763968723838,0.15073512,130.94,130.91,17.56507491]
[1763968724023,0.15148451,130.96,130.93,32.14568728]
[1763968724215,0.15148451,130.96,130.94,21.66134961]
[1763968724421,0.15148451,130.96,130.95,14.02472728]
[1763968725144,0.15148451,130.96,130.95,14.73472728]
[1763968725707,0.15148451,130.96,130.94,11.03662233]
[1763968726008,0.72,131.0,130.95,14.73472728]
[1763968726214,0.72,131.0,130.96,7.01236364]
[1763968727343,0.72,131.0,130.96,14.648283]
[1763968729011,0.1,131.05,130.97,16.80119133]
[1763968729012,0.72,131.04,130.97,16.80119133]
[1763968729335,0.72,131.04,131.03,7.01236364]
[1763968730013,0.72,131.04,131.0,7.01236364]
[1763968730213,18.12096,131.02,130.99,7.01236364]
[1763968730615,18.84096,131.01,130.98,7.01236364]
[1763968731124,0.72,131.0,130.98,7.01236364]
[1763968731440,0.72,131.0,130.99,7.01236364]
[1763968732025,0.72,131.03,130.99,25.13332364]
[1763968732335,0.72,131.03,131.02,7.01236364]
[1763968733042,0.72,131.03,131.01,7.01236364]
[1763968733941,0.72,131.03,131.02,7.01236364]
[1763968735226,0.82,131.05,131.02,7.01236364]
[1763968735541,0.82,131.05,131.04,7.01236364]
[1763968736849,0.82,131.05,130.98,10.69445002]
[1763968737038,0.82,131.05,131.02,7.01236364]
[1763968740060,0.82,131.05,131.03,7.01236364]
[1763968740540,0.1,131.05,131.04,7.01236364]
[1763968741652,0.23850825,131.05,131.04,14.73472728]
[1763968741844,0.23850825,131.05,131.04,7.01236364]
[1763968743533,0.23850825,131.05,131.04,14.73472728]
[1763968744347,0.23850825,131.05,131.04,22.36598491]
[1763968744854,0.16557815,131.07,131.05,7.01236364]
[1763968745033,0.16557815,131.07,131.06,14.64245672]
[1763968745245,0.16557815,131.07,131.06,15.35245672]
[1763968745558,0.1373392,131.08,131.06,15.35245672]
[1763968745745,0.1373392,131.08,131.07,7.72236364]
[1763968746255,0.1373392,131.08,131.05,7.63049808]
[1763968746456,0.1373392,131.08,131.07,7.01236364]
[1763968747032,0.35479281,131.09,131.07,25.14070227]
[1763968747266,0.16143579,131.1,131.08,7.72236364]
[1763968747556,0.16143579,131.1,131.09,7.01236364]
[1763968747958,0.88143579,131.1,131.09,7.01236364]
[1763968749279,0.88143579,131.1,131.05,3.05845471]
[1763968749453,0.88143579,131.1,131.08,7.01236364]
[1763968749634,0.88143579,131.1,131.09,7.01236364]
[1763968751954,0.88143579,131.1,131.05,11.74051327]
[1763968751955,0.88143579,131.1,131.04,7.01236364]
[1763968752136,0.88143579,131.1,131.08,7.01236364]
[1763968752532,0.88143579,131.1,131.07,7.01236364]
[1763968752767,0.88143579,131.1,131.06,7.01236364]
[1763968753244,19.00239579,131.1,131.06,7.01236364]
[1763968753433,9.78882769,131.09,131.05,7.01236364]
[1763968753757,10.50882769,131.09,131.05,7.01236364]
[1763968753969,0.72,131.08,131.04,7.01236364]
[1763968754137,0.72,131.08,131.06,7.01236364]
[1763968754343,0.72,131.08,131.07,7.01236364]
[1763968754840,0.72,131.08,131.02,18.83096]
[1763968755040,0.72,131.08,131.05,7.01236364]
[1763968755263,0.72,131.08,131.06,7.01236364]
[1763968755466,0.16143579,131.1,131.07,7.01236364]
[1763968755467,0.88143579,131.1,131.07,7.01236364]
[1763968755765,10.50882769,131.09,131.0,7.63338538]
[1763968755935,10.50882769,131.09,131.05,7.01236364]
[1763968756278,0.67,131.08,131.06,7.01236364]
[1763968756484,18.12096,131.07,131.0,62.1]
[1763968756640,18.12096,131.07,131.05,7.01236364]
[1763968756963,0.67,131.06,131.05,7.01236364]
[1763968757167,0.67,131.06,131.04,7.01236364]
[1763968757656,0.67,131.06,131.03,7.01236364]
[1763968757966,0.67,131.06,131.04,7.01236364]
[1763968759159,0.67,131.06,131.05,7.01236364]
[1763968759349,0.67,131.08,131.05,7.01236364]
[1763968759549,0.67,131.07,131.06,7.01236364]
[1763968760365,0.67,131.09,131.06,7.01236364]
[1763968760648,0.67,131.09,131.07,7.01236364]
[1763968761577,0.16529005,131.08,131.07,7.01236364]
[1763968762081,0.83529005,131.08,131.07,7.01236364]
[1763968763270,0.83529005,131.08,131.05,7.01236364]
[1763968764474,0.83529005,131.08,131.06,7.01236364]
[1763968765682,0.83529005,131.08,131.07,7.01236364]
[1763968768975,0.83529005,131.08,131.06,7.01236364]
[1763968769779,0.16529005,131.08,131.07,7.01236364]
[1763968770786,0.16529005,131.08,131.07,7.68236364]
[1763968771376,0.16529005,131.08,131.07,15.31187458]
[1763968771571,0.16529005,131.08,131.07,7.68236364]
[1763968772584,0.16529005,131.08,131.07,15.31187458]
[1763968773560,0.16529005,131.08,131.05,3.82128841]
[1763968773760,0.16529005,131.08,131.07,7.01236364]
[1763968774567,0.83529005,131.08,131.07,7.01236364]
[1763968775068,0.16529005,131.08,131.07,7.01236364]
[1763968775666,0.16529005,131.08,131.07,7.68236364]
[1763968776587,0.16529005,131.08,131.07,12.57992465]
[1763968777864,0.16529005,131.08,131.07,11.90992465]
[1763968778370,0.16529005,131.08,131.07,20.20943559]
[1763968778562,0.16529005,131.08,131.07,12.96228505]
[1763968778779,0.16118711,131.09,131.07,12.96228505]
[1763968778981,0.16457464,131.1,131.08,5.33277411]
[1763968779186,0.16457464,131.1,131.09,4.66277411]
[1763968779500,0.16096563,131.11,131.1,4.66277411]
[1763968779663,0.16096563,131.11,131.1,5.33277411]
[1763968780584,0.16096563,131.11,131.1,12.57206226]
[1763968780900,0.16096563,131.11,131.1,11.90206226]
[1763968781185,0.16096563,131.11,131.1,12.57206226]
[1763968781404,0.16096563,131.11,131.1,20.19982732]
[1763968781601,0.30622943,131.11,131.1,20.19982732]
[1763968782181,0.1452638,131.11,131.1,20.19982732]
[1763968782695,0.1452638,131.11,131.1,20.96260382]
[1763968784901,0.1452638,131.11,131.1,11.90206226]
[1763968785398,0.1452638,131.11,131.1,12.57206226]
[1763968785571,0.1452638,131.11,131.1,11.90206226]
[1763968785770,0.1452638,131.11,131.09,3.4]
[1763968785974,0.1452638,131.11,131.1,11.90206226]
[1763968786784,0.8652638,131.11,131.1,11.90206226]
[1763968787677,0.8652638,131.11,131.09,11.90206226]
[1763968787886,0.8652638,131.11,131.03,0.67]
[1763968788069,9.78882769,131.1,131.06,11.90206226]
[1763968788577,0.69,131.09,131.01,4.12]
[1763968788906,0.69,131.09,131.05,11.90206226]
[1763968789277,0.69,131.09,131.07,11.90206226]
[1763968790794,0.69,131.09,131.02,0.72]
[1763968790795,0.69,131.09,131.05,11.90206226]
[1763968790968,18.12096,131.06,131.03,11.90206226]
[1763968791172,0.69,131.05,131.03,11.90206226]
[1763968792200,0.69,131.05,131.04,11.90206226]
[1763968795385,4.09,131.08,131.04,11.90206226]
[1763968795591,3.4,131.08,131.07,11.90206226]
[1763968796085,0.69,131.08,131.07,11.90206226]
[1763968800502,0.69,131.1,131.07,11.90206226]
[1763968800705,0.69,131.1,131.09,11.90206226]
[1763968801005,0.69,131.1,131.08,11.90206226]
[1763968801409,0.69,131.1,131.01,0.72]
[1763968801708,9.78882769,131.07,131.02,11.90206226]
[1763968801890,3.38,131.06,131.03,11.90206226]
[1763968802195,4.07,131.06,131.03,11.90206226]
[1763968802385,0.69,131.05,131.03,11.90206226]
[1763968802705,0.69,131.05,131.04,11.90206226]
[1763968802905,3.38,131.06,131.04,11.90206226]
[1763968803204,0.69,131.05,131.0,18.84096]
[1763968803409,3.38,131.06,131.01,0.72]
[1763968803794,4.07,131.06,131.01,8.35272408]
[1763968804209,4.07,131.06,131.04,18.12096]
[1763968804387,4.07,131.06,131.05,11.90206226]
[1763968804588,0.69,131.05,131.04,18.12096]
[1763968804787,0.69,131.05,131.04,30.02302226]
[1763968805412,0.69,131.05,131.03,11.90206226]
[1763968805890,0.69,131.05,131.01,74.00206226]
[1763968806088,0.69,131.05,131.01,11.90206226]
[1763968806507,0.69,131.05,130.96,7.63588233]
[1763968806715,0.69,131.05,131.0,11.90206226]
[1763968806884,12.59206226,131.05,131.0,11.90206226]
[1763968807087,21.69088995,131.04,130.96,0.72]
[1763968807291,21.69088995,131.02,130.97,11.90206226]
[1763968807506,3.4,131.01,130.97,11.90206226]
[1763968807713,4.09,131.01,130.97,11.90206226]
[1763968807916,0.69,131.0,130.97,11.90206226]
[1763968808089,0.69,131.0,130.93,0.2]
[1763968808090,21.69088995,130.99,130.93,0.2]
[1763968808296,11.90206226,130.98,130.93,0.2]
[1763968808513,15.30206226,130.97,130.93,0.2]
[1763968808714,15.99206226,130.97,130.93,0.2]
[1763968809015,0.69,130.96,130.93,0.2]
[1763968809608,0.69,130.99,130.95,11.90206226]
[1763968809924,0.69,130.98,130.94,11.90206226]
[1763968810105,0.69,130.98,130.95,11.90206226]
[1763968810998,12.59206226,130.98,130.93,0.2]
[1763968811307,39.81184995,130.97,130.93,0.2]
[1763968811501,40.50184995,130.97,130.93,0.2]
[1763968811816,12.59206226,130.96,130.93,0.2]
[1763968811993,3.4,130.95,130.93,0.2]
[1763968812195,4.09,130.95,130.93,0.2]
[1763968812417,0.69,130.94,130.93,12.10206226]
[1763968812600,4.09,130.95,130.93,12.10206226]
[1763968813124,3.4,130.95,130.94,11.90206226]
[1763968814026,4.09,130.95,130.94,11.90206226]
[1763968814621,4.09,130.95,130.93,0.2]
[1763968814832,0.66,130.94,130.93,0.2]
[1763968817506,28.56978769,130.94,130.93,0.2]
[1763968817714,21.69088995,130.9,130.87,0.2]
[1763968817918,4.12,130.89,130.87,0.2]
[1763968818420,0.72,130.88,130.87,0.2]
[1763968819023,18.84096,130.88,130.87,0.2]
[1763968819208,40.53184995,130.88,130.84,0.2]
[1763968819538,18.12096,130.85,130.84,0.2]
[1763968819827,21.52096,130.85,130.84,0.2]
[1763968820125,22.24096,130.85,130.84,0.2]
[1763968821608,22.38755414,130.85,130.84,0.2]
[1763968823604,32.17638183,130.85,130.84,0.2]
[1763968824308,22.38755414,130.85,130.84,0.2]
[1763968829007,4.26659414,130.85,130.84,0.2]
[1763968829731,44.07844409,130.85,130.84,0.2]
[1763968830517,28.77638183,130.85,130.84,0.2]
[1763968830731,25.95748409,130.85,130.84,0.2]
[1763968830931,27.95748408,130.85,130.84,0.2]
[1763968831434,25.95748409,130.85,130.84,0.2]
[1763968831727,27.95748408,130.85,130.84,0.2]
[1763968831932,37.68163955,130.85,130.84,0.2]
[1763968833128,27.90978769,130.81,130.76,0.2]
[1763968833332,18.12096,130.77,130.76,0.2]
[1763968833506,21.52096,130.77,130.76,0.2]
[1763968833712,22.24096,130.77,130.76,0.2]
[1763968834119,32.02978769,130.77,130.76,0.2]
[1763968834438,43.93184995,130.77,130.76,0.2]
[1763968835308,0.72,130.79,130.76,0.2]
[1763968835621,3.4,130.78,130.76,0.2]
[1763968836226,18.12096,130.77,130.76,0.2]
[1763968836444,40.53184995,130.77,130.76,0.2]
[1763968837436,42.53184994,130.77,130.76,0.2]
[1763968837616,40.53184995,130.77,130.76,0.2]
[1763968837826,42.53184994,130.77,130.76,0.2]
[1763968838541,30.62978768,130.77,130.76,0.2]
[1763968838747,37.66998338,130.77,130.76,0.2]
[1763968839040,54.43433455,130.77,130.76,0.2]
[1763968839241,7.0401957,130.71,130.7,0.2]
[1763968839427,10.4401957,130.71,130.7,0.2]
[1763968839629,11.1601957,130.71,130.7,0.2]
[1763968840041,29.2811557,130.71,130.7,0.2]
[1763968840242,22.24096,130.71,130.7,0.2]
[1763968840439,32.02978769,130.71,130.7,0.2]
[1763968841634,32.18615798,130.71,130.7,0.2]
[1763968842224,31.46615798,130.71,130.7,0.2]
[1763968842741,32.18615798,130.71,130.7,0.2]
[1763968843342,18.27733029,130.71,130.7,0.9]
[1763968843546,21.67733029,130.71,130.7,0.9]
[1763968844048,21.67733029,130.71,130.7,7.9401957]
[1763968844554,21.67733029,130.71,130.7,7.2401957]
[1763968844884,4.27637029,130.71,130.7,0.2]
[1763968845149,21.10539368,130.71,130.7,0.2]
[1763968846153,14.06519798,130.71,130.7,0.2]
[1763968846529,13.34519798,130.71,130.7,0.2]
[1763968848457,3.55637029,130.71,130.7,7.9001957]
[1763968849129,3.55637029,130.71,130.7,0.86]
[1763968849329,3.55637029,130.71,130.7,7.9001957]
[1763968851655,0.15637029,130.71,130.7,7.9001957]
[1763968853537,0.15637029,130.71,130.7,15.55130511]
[1763968853741,0.16456712,130.72,130.7,15.55130511]
[1763968854053,0.16456712,130.72,130.71,7.7001957]
[1763968855351,0.16456712,130.72,130.71,15.35071976]
[1763968856434,0.16456712,130.72,130.71,16.11577216]
[1763968858055,0.15789786,130.74,130.72,0.66]
[1763968858257,0.13889035,130.75,130.73,25.1611557]
[1763968858555,0.13889035,130.75,130.73,18.12096]
[1763968858758,0.13889035,130.75,130.74,7.0401957]
[1763968858974,0.13889035,130.75,130.74,7.7001957]
[1763968859262,0.13889035,130.75,130.74,7.0401957]
[1763968859458,0.13889035,130.75,130.74,7.7001957]
[1763968860057,0.13889035,130.75,130.74,7.0401957]
[1763968860361,0.13889035,130.75,130.72,7.7001957]
[1763968860534,0.85889035,130.75,130.72,7.0401957]
[1763968860731,18.97985035,130.75,130.7,0.2]
[1763968860935,28.04867804,130.75,130.71,0.66]
[1763968861157,18.12096,130.74,130.72,7.0401957]
[1763968861665,0.14668418,130.73,130.71,0.66]
[1763968862850,0.14668418,130.73,130.72,7.0401957]
[1763968864436,0.14668418,130.73,130.72,7.7001957]
[1763968866564,0.14668418,130.73,130.72,15.3501345]
[1763968867667,0.14668418,130.73,130.72,7.7001957]
[1763968870676,0.14668418,130.73,130.7,0.2]
[1763968870972,0.86668418,130.73,130.7,0.2]
[1763968871651,0.86668418,130.73,130.7,7.2401957]
[1763968871837,0.86668418,130.73,130.7,0.2]
[1763968872038,18.12096,130.72,130.7,0.2]
[1763968872461,18.12096,130.72,130.71,7.0401957]
[1763968872873,18.12096,130.72,130.7,7.9001957]
[1763968873048,18.12096,130.72,130.7,7.2401957]
[1763968874271,18.84096,130.72,130.7,7.2401957]
[1763968874482,0.72,130.71,130.7,0.2]
[1763968874659,17.54902339,130.71,130.7,0.2]
[1763968875148,18.12096,130.68,130.65,7.0401957]
[1763968875556,18.84096,130.68,130.65,7.0401957]
[1763968875760,18.84096,130.68,130.59,7.0401957]
[1763968875761,0.66,130.67,130.59,7.0401957]
[1763968875961,4.06,130.67,130.63,7.0401957]
[1763968876363,0.66,130.66,130.63,7.0401957]
[1763968876897,0.66,130.66,130.62,0.69]
[1763968877061,0.66,130.66,130.62,7.7301957]
[1763968877373,0.66,130.66,130.63,7.0401957]
[1763968877572,3.4,130.67,130.64,7.0401957]
[1763968877759,3.4,130.67,130.64,7.7301957]
[1763968878159,4.06,130.67,130.64,7.0401957]
[1763968878583,18.12096,130.66,130.65,7.0401957]
[1763968878783,0.66,130.69,130.65,7.7301957]
[1763968879077,3.4,130.69,130.68,7.0401957]
[1763968879272,10.59551187,130.73,130.68,7.0401957]
[1763968879471,3.54668418,130.73,130.71,7.0401957]
[1763968879678,4.20668418,130.73,130.7,7.0401957]
[1763968879990,18.12096,130.71,130.67,7.0401957]
[1763968880201,0.66,130.7,130.66,7.0401957]
[1763968880361,0.66,130.7,130.67,7.0401957]
[1763968881162,18.12096,130.71,130.68,7.0401957]
[1763968881371,18.78096,130.71,130.68,7.0401957]
[1763968881677,0.15757401,130.69,130.68,7.0401957]
[1763968883479,0.15757401,130.69,130.68,7.7301957]
[1763968884189,0.15757401,130.69,130.68,15.38247607]
[1763968886161,0.15757401,130.69,130.68,7.7301957]
[1763968886384,0.15757401,130.69,130.68,23.1878998]
[1763968886694,0.1639433,130.7,130.68,32.97672749]
[1763968886988,0.1639433,130.7,130.69,7.7301957]
[1763968888479,0.1639433,130.7,130.69,15.38189055]
[1763968891196,0.1639433,130.7,130.69,7.7301957]
[1763968891578,0.1639433,130.7,130.69,15.38189055]
[1763968891891,0.1639433,130.7,130.69,7.7301957]
[1763968895393,0.1639433,130.7,130.69,0.69]
[1763968895600,0.1639433,130.7,130.69,7.0401957]
[1763968897685,0.1639433,130.7,130.69,7.7301957]
[1763968898696,0.1639433,130.7,130.69,3.69279274]
[1763968899098,0.1639433,130.7,130.69,3.00279274]
[1763968899404,0.8239433,130.7,130.69,3.00279274]
[1763968899705,0.1639433,130.7,130.69,3.00279274]
[1763968900675,0.1639433,130.7,130.69,4.69243321]
[1763968901593,0.31570133,130.7,130.69,4.69243321]
[1763968902285,0.15175803,130.7,130.69,4.69243321]
[1763968902482,0.15175803,130.7,130.69,5.38243321]
[1763968904796,0.15175803,130.7,130.69,4.69243321]
[1763968904992,0.15175803,130.7,130.69,5.38243321]
[1763968905482,0.81175803,130.7,130.69,4.69243321]
[1763968905687,0.81175803,130.7,130.63,0.7]
[1763968905881,23.62515124,130.7,130.65,4.69243321]
[1763968906114,23.62515124,130.7,130.64,4.69243321]
[1763968906298,0.7,130.69,130.65,4.69243321]
[1763968908105,0.7,130.69,130.66,4.69243321]
[1763968908606,18.12096,130.68,130.65,11.99082563]
[1763968909101,0.7,130.67,130.65,11.99082563]
[1763968909687,0.7,130.67,130.66,11.99082563]
[1763968910578,0.7,130.67,130.63,0.72]
[1763968910579,0.7,130.67,130.65,11.99082563]
[1763968911806,0.7,130.67,130.63,0.72]
[1763968912108,0.7,130.67,130.65,11.99082563]
[1763968913604,18.82096,130.67,130.65,11.99082563]
[1763968913905,18.82096,130.67,130.64,11.99082563]
[1763968914084,0.7,130.66,130.64,11.99082563]
[1763968914504,0.7,130.66,130.62,0.72]
[1763968914703,0.7,130.66,130.64,11.99082563]
[1763968914901,0.7,130.66,130.62,0.72]
[1763968915104,0.7,130.66,130.64,11.99082563]
[1763968915912,0.7,130.66,130.63,11.99082563]
[1763968916704,0.7,130.66,130.6,0.72]
[1763968916902,0.7,130.66,130.62,11.99082563]
[1763968918215,18.82096,130.66,130.63,11.99082563]
[1763968918507,0.7,130.66,130.64,11.99082563]
[1763968919030,0.7,130.66,130.65,11.99082563]
[1763968920213,18.12096,130.67,130.65,11.99082563]
[1763968920413,18.12096,130.65,130.59,0.72]
[1763968920612,0.7,130.66,130.62,11.99082563]
[1763968920817,0.7,130.65,130.62,11.99082563]
[1763968921330,18.82096,130.67,130.63,11.99082563]
[1763968921504,0.7,130.66,130.6,0.72]
[1763968921811,0.7,130.66,130.63,11.99082563]
[1763968921812,0.15466402,130.64,130.63,11.99082563]
[1763968922893,0.15466402,130.64,130.63,12.71082563]
[1763968928516,0.15466402,130.64,130.63,5.41589462]
[1763968929108,0.15466402,130.64,130.63,4.69589462]
[1763968930120,0.15466402,130.64,130.62,0.72]
[1763968930425,0.15466402,130.64,130.63,4.69589462]
[1763968931027,0.15466402,130.64,130.63,5.41589462]
[1763968931218,0.14097286,130.68,130.64,18.84096]
[1763968931429,0.1385053,130.7,130.68,7.65228037]
[1763968931740,0.1385053,130.7,130.69,5.41589462]
[1763968932027,0.8385053,130.7,130.69,3.06713184]
[1763968932330,0.8385053,130.7,130.68,4.69589462]
[1763968932537,0.8385053,130.7,130.68,11.98641744]
[1763968932829,0.63128737,130.7,130.67,11.98641744]
[1763968933029,0.14581687,130.71,130.67,11.98641744]
[1763968934213,0.14581687,130.71,130.68,11.98641744]
[1763968934715,0.7,130.7,130.68,11.98641744]
[1763968935030,0.7,130.7,130.65,0.72]
[1763968935325,0.7,130.7,130.68,11.98641744]
[1763968935522,18.82096,130.7,130.67,11.98641744]
[1763968935942,0.66,130.69,130.67,11.98641744]
[1763968936526,0.66,130.69,130.68,11.98641744]
[1763968937609,18.12096,130.7,130.68,11.98641744]
[1763968937808,18.78096,130.7,130.69,11.98641744]
[1763968938919,18.12096,130.7,130.69,11.98641744]
[1763968939322,0.14581687,130.71,130.69,11.98641744]
[1763968939527,0.14581687,130.71,130.7,11.98641744]
[1763968939734,0.14581687,130.71,130.7,12.65641744]
[1763968941726,0.29367849,130.71,130.7,12.65641744]
[1763968941927,0.30136883,130.72,130.7,33.49635454]
[1763968942126,0.15049468,130.72,130.71,12.65641744]
[1763968944726,0.15049468,130.72,130.71,11.98641744]
[1763968944926,0.15049468,130.72,130.71,12.65641744]
[1763968948242,0.15049468,130.72,130.71,21.0719939]
[1763968949842,0.15049468,130.72,130.71,13.42146984]
[1763968950014,0.15049468,130.72,130.71,12.65641744]